[Event "Superbet Rapid Poland 2022"]
[Site "Warsaw"]
[Date "2022.05.19"]
[Round "2.4"]
[White "Wojtaszek, Radoslaw"]
[Black "Shevchenko, Kirill"]
[Result "1/2-1/2"]
[ECO "A58"]
[WhiteElo "2696"]
[BlackElo "2644"]
[Annotator "TA"]
[PlyCount "236"]
[EventDate "2022.05.19"]
[EventType "tourn"]
[EventCountry "POL"]
[SourceTitle "playchess.com"]
[Source "ChessBase"]
[SourceQuality "1"]
[TimeControl "1500+10"]

{[%evp 23,236,12,0,4,0,0,0,0,0,0,0,0,0,0,0,-25,-8,-16,-26,-15,0,0,0,0,0,0,20,20,38,13,22,0,0,0,0,0,0,0,16,0,0,0,0,0,0,0,0,0,0,0,0,0,0,0,0,0,0,0,1,0,7,0,0,0,0,0,0,0,0,0,0,0,0,0,0,-14,-14,-14,-14,-14,-14,-14,-8,-8,-8,-8,-8,-8,-8,-8,-8,-8,-8,-8,-8,-8,-8,-14,-8,-8,-8,-8,-8,-20,-8,-20,-8,-14,-8,-8,0,-8,-8,-8,-8,-8,0,0,0,0,0,-8,-8,-8,-8,-8,-8,-8,0,-8,-8,-48,-8,-8,0,0,0,0,0,0,0,0,0,0,0,0,0,0,0,0,0,0,0,0,0,0,0,0,0,0,0,0,0,0,0,0,0,0,0,0,0,0,0,0,0,0,0,0,0,0,0,0,0,0,0,0,0,0,0,0,0,0,0,0,0,0,0,0,0,0,0,0,0,0,0,0,0,0,0,0,0,0,0,0,0]} 1. d4 {[%emt 0:00:01]} Nf6 {[%emt 0:00:01]} 2. c4 {[%emt 0:00:03]} c5 {[%emt 0:00:04]} 3. d5 {[%emt 0:00:03]} b5 {[%emt 0:00:02]} 4. cxb5 {[%emt 0:00:15]} a6 {[%emt 0:00:02]} 5. bxa6 {[%emt 0:00:15]} e6 {[%emt 0:00:04]} 6. Nc3 {[%emt 0:00:36]} exd5 {[%emt 0:00:05]} 7. Nxd5 {[%emt 0:00:03]} Nxa6 {[%emt 0:00:19]} 8. Bg5 {[%emt 0:02:57]} Be7 {[%emt 0:00:26]} 9. Nxe7 {[%emt 0:00:24]} Qxe7 {[%emt 0:00:02]} 10. Nf3 {[%emt 0:00:45]} h6 {[%emt 0:01:22]} 11. Bf4 {[%emt 0:00:33]} Qe4 {[%emt 0:01:41]} 12. e3 {[%emt 0:04:37]} Nb4 {[%emt 0:00:14]} 13. Rc1 {[%emt 0:00:53]} Nxa2 {[%emt 0:00:53]} 14. Rc4 {[%emt 0:00:15]} Qb7 {[%emt 0:01:14]} 15. Be2 {[%emt 0:01:44]} d5 {[%emt 0:04:31]} 16. Ra4 {[%emt 0:00:16]} O-O {[%emt 0:00:47]} 17. Rxa8 {[%emt 0:00:23]} Qxa8 {[%emt 0:00:02]} 18. O-O {[%emt 0:00:37]} Ne4 {[%emt 0:02:11]} 19. Re1 {[%emt 0:03:32]} Nb4 {[%emt 0:01:00]} 20. Nd2 {[%emt 0:01:11]} Ba6 {[%emt 0:00:51]} 21. Be5 {[%emt 0:00:50]} Qc6 {[%emt 0:06:07]} 22. Nxe4 {[%emt 0:00:25]} dxe4 {[%emt 0:00:19]} 23. Bxa6 {[%emt 0:00:41]} Qxa6 {[%emt 0:00:06]} 24. Qg4 {[%emt 0:00:57]} Qg6 {[%emt 0:02:47]} (24... g5 {is interesting.} 25. Bc3 Nd3 26. Rf1 Qe6) 25. Qxg6 {[%emt 0:00:58]} fxg6 {[%emt 0:00:01]} 26. Bc3 {[%emt 0:00:02]} Nd3 {[%emt 0:00:02]} 27. Rf1 {[%emt 0:02:30]} (27. Rd1 $5 {[%cal Rf2f3]}) 27... g5 {[%emt 0:00:43]} 28. f3 {[%emt 0:00:45]} exf3 {[%emt 0:00:14]} 29. gxf3 {[%emt 0:00:11]} Re8 {[%emt 0:01:58]} 30. e4 {[%emt 0:00:42]} g4 {[%emt 0:00:02]} 31. fxg4 {[%emt 0:00:02]} Rxe4 {[%emt 0:00:01]} 32. h3 {[%emt 0:00:03]} Re3 {[%emt 0:00:55]} 33. Kg2 {[%emt 0:02:07]} g5 {[%emt 0:00:06]} 34. Rf3 {[%emt 0:00:40]} Nf4+ {[%emt 0:00:51]} 35. Kf2 {[%emt 0:00:02]} Re2+ {[%emt 0:00:28]} 36. Kf1 {[%emt 0:00:02]} Rh2 {[%emt 0:00:16]} 37. Be5 {[%emt 0:00:08]} Rh1+ {[%emt 0:00:17]} 38. Kf2 {[%emt 0:00:01]} Rh2+ {[%emt 0:00:04]} 39. Kf1 {[%emt 0:00:01]} Rh1+ {[%emt 0:00:18]} 40. Kf2 {[%emt 0:00:01]} Ng6 {[%emt 0:00:01]} 41. Bc3 {[%emt 0:00:11]} Nh4 {[%emt 0:00:16]} 42. Rf6 {[%emt 0:00:48]} Rh2+ {[%emt 0:00:06]} 43. Kf1 {[%emt 0:00:16]} Rxh3 {[%emt 0:00:16]} 44. Rxh6 {[%emt 0:00:02]} Rf3+ {[%emt 0:00:13]} 45. Ke2 {[%emt 0:00:02]} Rf4 {[%emt 0:00:04]} 46. Rc6 {[%emt 0:00:22]} c4 {[%emt 0:00:05]} 47. Bd2 {[%emt 0:00:22]} Re4+ {[%emt 0:00:07]} 48. Kd1 {[%emt 0:00:05]} Rxg4 {[%emt 0:00:24]} 49. Bxg5 {[%emt 0:00:06]} Rxg5 {[%emt 0:00:04]} 50. Rxc4 {[%emt 0:00:02]} Nf5 {[%emt 0:00:02]} 51. Kd2 {[%emt 0:00:05]} Kf7 {[%emt 0:00:02]} 52. b4 {[%emt 0:00:07]} Ke6 {[%emt 0:00:02]} 53. Rc5 $1 {[%emt 0:00:03]} Rg3 {[%emt 0:00:08]} 54. Rc8 {[%emt 0:00:07]} Kd5 {[%emt 0:00:03]} 55. b5 {[%emt 0:00:02]} Nd6 {[%emt 0:00:12]} 56. Rb8 {[%emt 0:00:04]} Kc5 {[%emt 0:00:03]} 57. b6 {[%emt 0:00:03]} Nc4+ {[%emt 0:00:02]} 58. Ke2 {[%emt 0:00:01]} (58. Kc2 {feels hotter.} Rg7 59. b7 Kb4 60. Kd3) 58... Nxb6 {[%emt 0:00:02]} 59. Rd8 {[%emt 0:00:01]} Nd5 {[%emt 0:00:03]} 60. Kf2 {[%emt 0:00:01]} Rb3 {[%emt 0:00:04]} 61. Ke2 {[%emt 0:00:07]} Kd4 {[%emt 0:00:02]} 62. Kf2 {[%emt 0:00:01]} Rb6 {[%emt 0:00:34]} 63. Kf3 {[%emt 0:00:05]} Rg6 {[%emt 0:00:05]} 64. Kf2 {[%emt 0:00:06]} Rg7 {[%emt 0:00:26]} 65. Kf3 {[%emt 0:00:07]} Rf7+ {[%emt 0:00:13]} 66. Ke2 {[%emt 0:00:02]} Rf6 {[%emt 0:00:05]} 67. Rd7 {[%emt 0:00:20]} Ke4 {[%emt 0:00:18]} 68. Rd8 {[%emt 0:00:04]} Nf4+ {[%emt 0:00:34]} 69. Kd2 {[%emt 0:00:01]} Ne6 {[%emt 0:00:06]} 70. Re8 {[%emt 0:00:13]} Kd4 {[%emt 0:00:26]} 71. Ke2 {[%emt 0:00:01]} Nf4+ {[%emt 0:00:04]} 72. Kf3 {[%emt 0:00:07]} Nd3+ {[%emt 0:00:11]} 73. Kg3 {[%emt 0:00:13]} Ne5 {[%emt 0:00:03]} 74. Ra8 {[%emt 0:00:08]} Rf3+ {[%emt 0:00:05]} 75. Kg2 {[%emt 0:00:04]} Rc3 {[%emt 0:00:27]} 76. Ra4+ {[%emt 0:00:10]} Ke3 {[%emt 0:00:02]} 77. Kg3 {[%emt 0:00:04]} Rb3 {[%emt 0:00:11]} 78. Ra8 {[%emt 0:00:28]} Ke4+ {[%emt 0:00:19]} 79. Kf2 {[%emt 0:00:15]} Ng4+ {[%emt 0:00:06]} 80. Ke2 {[%emt 0:00:33]} Rb2+ {[%emt 0:00:02]} 81. Kd1 {[%emt 0:00:01]} Ne5 {[%emt 0:00:20]} 82. Rd8 {[%emt 0:00:09]} Nf3 {[%emt 0:00:11]} 83. Kc1 {[%emt 0:00:09]} Rh2 {[%emt 0:00:03]} 84. Kb1 {[%emt 0:00:34]} Nd4 {[%emt 0:00:01]} 85. Rg8 {[%emt 0:00:24]} Kd3 {[%emt 0:00:09]} 86. Rg3+ {[%emt 0:00:02]} Kc4 {[%emt 0:00:01]} 87. Rg8 {[%emt 0:00:14]} Rf2 {[%emt 0:00:31]} 88. Rc8+ {[%emt 0:00:17]} Kd3 {[%emt 0:00:06]} 89. Rg8 {[%emt 0:00:10]} Nb5 {[%emt 0:00:21]} 90. Kc1 {[%emt 0:00:20]} Rh2 {[%emt 0:00:11]} 91. Rg3+ {[%emt 0:00:08]} Kc4 {[%emt 0:00:04]} 92. Rg8 {[%emt 0:00:03]} Nd4 {[%emt 0:00:10]} 93. Rc8+ {[%emt 0:00:03]} Kd3 {[%emt 0:00:01]} 94. Kb1 {[%emt 0:00:10]} Rh6 {[%emt 0:00:16]} 95. Kb2 {[%emt 0:00:27]} Rb6+ {[%emt 0:00:18]} 96. Ka3 {[%emt 0:00:06]} Nc6 {[%emt 0:00:07]} 97. Rh8 {[%emt 0:00:06]} Kc4 {[%emt 0:00:06]} 98. Rh4+ {[%emt 0:00:08]} Nd4 {[%emt 0:00:02]} 99. Ka2 {[%emt 0:00:07]} Rf6 {[%emt 0:00:24]} 100. Rh8 {[%emt 0:00:19]} Kc3 {[%emt 0:00:11]} 101. Rh3+ {[%emt 0:00:30]} Nf3 {[%emt 0:00:05]} 102. Kb1 {[%emt 0:00:27]} Rf5 {[%emt 0:00:16]} 103. Kc1 {[%emt 0:00:16]} Rf4 {[%emt 0:00:09]} 104. Kb1 {[%emt 0:00:16]} Kb3 {[%emt 0:00:11]} 105. Kc1 {[%emt 0:00:04]} Kc3 {[%emt 0:00:09]} 106. Kb1 $1 {[%emt 0:00:02]} Rf8 {[%emt 0:00:11]} 107. Kc1 {[%emt 0:00:01]} Rf6 {[%emt 0:00:10]} 108. Kb1 {[%emt 0:00:07]} Kd2 {[%emt 0:00:04]} 109. Kb2 {[%emt 0:00:08]} Nd4 {[%emt 0:00:13]} 110. Rh2+ {[%emt 0:00:05]} Kd3 {[%emt 0:00:05]} 111. Rh3+ {[%emt 0:00:03]} Kc4 {[%emt 0:00:02]} 112. Rc3+ {[%emt 0:00:13]} Kb4 {[%emt 0:00:01]} 113. Rc8 {[%emt 0:00:03]} Rf2+ {[%emt 0:00:13]} 114. Kc1 {[%emt 0:00:03]} Nb3+ {[%emt 0:00:30]} 115. Kd1 {[%emt 0:00:01]} Nc5 {[%emt 0:00:06]} 116. Ke1 {[%emt 0:00:03]} Ra2 {[%emt 0:00:02]} 117. Rd8 {[%emt 0:00:09]} Kc3 {[%emt 0:00:02]} 118. Kf1 {[%emt 0:00:03]} Ne6 {[%emt 0:00:12]} 1/2-1/2

[Event "Superbet Rapid Poland 2022"]
[Site "Warsaw"]
[Date "2022.05.19"]
[Round "2.5"]
[White "So, Wesley"]
[Black "Anand, Viswanathan"]
[Result "0-1"]
[ECO "E48"]
[WhiteElo "2766"]
[BlackElo "2751"]
[Annotator "TA"]
[PlyCount "60"]
[EventDate "2022.05.19"]
[EventType "tourn"]
[EventCountry "POL"]
[SourceTitle "playchess.com"]
[Source "ChessBase"]
[SourceQuality "1"]
[TimeControl "1500+10"]

{[%evp 11,60,1,4,0,-5,-3,0,0,0,-9,-14,-19,0,-37,-33,-31,-35,-21,-7,-17,-8,-6,-9,-18,17,0,74,58,72,46,66,-103,-106,-97,-97,-91,-91,-73,-87,-126,-104,-343,-208,-209,-191,-193,-173,-187,-179,-270,-289]} 1. d4 {[%emt 0:00:04]} Nf6 {[%emt 0:00:02]} 2. c4 {[%emt 0:00:03]} e6 {[%emt 0:00:02]} 3. Nc3 {[%emt 0:00:03]} Bb4 {[%emt 0:00:02]} 4. e3 {[%emt 0:00:03]} O-O {[%emt 0:00:04]} 5. Bd3 {[%emt 0:00:02]} d5 {[%emt 0:00:07]} 6. cxd5 {[%emt 0:00:05]} exd5 {[%emt 0:00:02]} 7. a3 {[%emt 0:00:02] E48: Nimzo-Indian: Rubinstein: 5 Bd3 d5 including 6 Ne2, but excluding 6 a3.} Bd6 {[%emt 0:00:07]} 8. Qc2 {[%emt 0:00:03]} c6 {[%emt 0:00:57]} 9. Nge2 {[%emt 0:00:03] The position is equal.} Nbd7 {[%emt 0:00:07]} 10. Bd2 {[%emt 0:01:02]} Re8 {[%emt 0:00:22]} 11. f3 {[%emt 0:00:02]} Nf8 {[%emt 0:00:23] [#]} 12. O-O-O $146 {[%emt 0:00:26]} ({Predecessor:} 12. O-O Bc7 13. Rf2 Ne6 14. Rd1 b6 15. b4 Bb7 16. Ng3 a5 17. Nce2 axb4 18. axb4 {1-0 (28) Sasikiran,K (2650)-Roulet Dubonnet,E (2050) Fagernes 2022}) 12... b5 {[%emt 0:00:57]} 13. e4 {[%emt 0:00:33]} b4 {[%emt 0:00:59]} 14. axb4 {[%emt 0:00:10] [#] Strongly threatening e5.} Bxb4 {[%emt 0:00:08]} 15. e5 {[%emt 0:00:08]} N6d7 {[%emt 0:00:03]} 16. Na4 {[%emt 0:01:07][%csl LRb4,LRc6]} Rb8 {[%emt 0:00:32]} 17. Qxc6 {[%emt 0:02:11]} Bxd2+ {[%emt 0:01:18]} (17... Bb7 $5 18. Qc2 Qa5 $14) 18. Rxd2 {[%emt 0:00:19]} Bb7 {[%emt 0:01:56]} (18... Qa5 $11 19. Qc2 Rb4) 19. Qd6 $16 {[%emt 0:01:54]} Re6 {[%emt 0:01:01]} 20. Qa3 {[%emt 0:00:02]} Ba6 {[%emt 0:00:05]} 21. Bc2 $2 {[%emt 0:00:20]} (21. Nf4 $14 {stays ahead.} Rc6+ 22. Rc2) 21... Bxe2 $17 {[%emt 0:00:43]} ({Don't play} 21... Qg5 22. Nec3 $16) 22. Rxe2 {[%emt 0:00:01]} Ra6 {[%emt 0:00:23]} 23. Qd3 {[%emt 0:08:08]} Qa5 {[%emt 0:01:41]} 24. e6 {[%emt 0:04:48]} fxe6 {[%emt 0:00:35]} 25. Rhe1 {[%emt 0:00:28]} Rc6 {[%emt 0:02:47] [#] White must now prevent ...Qxa4.} 26. Nc3 {[%emt 0:01:14] Now White is beyond hope.} (26. Kd1 $17 {was called for.}) 26... Qa1+ {[%emt 0:04:17]} 27. Kd2 {[%emt 0:01:58]} Qxb2 {[%emt 0:00:03]} 28. Rb1 {[%emt 0:00:23]} Qa3 {[%emt 0:00:03] aiming for ...Rbc8. Really sharp!} 29. Rxb8 {[%emt 0:00:19]} Nxb8 {[%emt 0:00:02]} 30. f4 {[%emt 0:00:01]} (30. Re3 $142) 30... Na6 {[%emt 0:00:11] Weighted Error Value: White=0.33/Black=0.17 (very precise)} 0-1

[Event "Superbet Rapid Poland 2022"]
[Site "Warsaw"]
[Date "2022.05.19"]
[Round "3.1"]
[White "Anand, Viswanathan"]
[Black "Korobov, Anton"]
[Result "1-0"]
[ECO "C02"]
[WhiteElo "2751"]
[BlackElo "2671"]
[Annotator "TA"]
[PlyCount "56"]
[EventDate "2022.05.19"]
[EventType "tourn"]
[EventCountry "POL"]
[SourceTitle "playchess.com"]
[Source "ChessBase"]
[SourceQuality "1"]
[TimeControl "1500+10"]

{[%evp 11,56,0,16,12,11,15,23,11,43,47,43,36,29,33,27,16,54,58,51,50,52,50,52,47,64,49,86,62,56,60,89,85,85,78,86,71,119,118,147,156,139,148,125,127,745,749,6717]} 1. e4 {[%emt 0:00:02]} e6 {[%emt 0:00:02]} 2. d4 {[%emt 0:00:06]} d5 {[%emt 0:00:02]} 3. e5 {[%emt 0:00:03]} c5 {[%emt 0:00:06]} 4. c3 {[%emt 0:00:02]} Nc6 {[%emt 0:00:03]} 5. Nf3 {[%emt 0:00:02]} Bd7 {[%emt 0:00:04]} 6. Be2 {[%emt 0:00:08]} Rc8 {[%emt 0:00:10]} 7. O-O {[%emt 0:00:19] C02: French: Advance Variation.} h6 {[%emt 0:00:05]} 8. Be3 {[%emt 0:00:38] [#]} Qb6 $146 {[%emt 0:01:04]} ({Predecessor:} 8... cxd4 9. cxd4 Nge7 10. Nc3 Nf5 11. Bd3 Nxe3 12. fxe3 Be7 13. Qe2 Nb4 14. Bb1 Nc6 {½-½ (22) Jabot,D (2177)-Rotaru,I (2237) ICCF email 2017}) 9. dxc5 {[%emt 0:00:36] White has an edge.} Bxc5 {[%emt 0:00:04]} (9... Qxb2 {with more complications.} 10. Nbd2 Qxc3 11. Rb1 Nge7) 10. Bxc5 {[%emt 0:00:02]} Qxc5 {[%emt 0:00:02]} 11. Nbd2 {[%emt 0:00:13]} Nge7 {[%emt 0:00:15]} 12. Nb3 {[%emt 0:00:21]} Qb6 {[%emt 0:00:03]} 13. Bd3 {[%emt 0:00:02]} Na5 {[%emt 0:01:38]} 14. Nxa5 {[%emt 0:00:39]} Qxa5 {[%emt 0:00:02]} 15. a4 {[%emt 0:00:01][%cal Ba2a4,Ba4a5][%mdl 32] Prevents Bb5.} O-O {[%emt 0:00:29]} 16. Re1 {[%emt 0:00:17]} Qb6 {[%emt 0:01:52]} 17. Qd2 {[%emt 0:01:15]} a6 {[%emt 0:00:29]} 18. h4 {[%emt 0:02:18]} Rc7 {[%emt 0:00:25]} 19. a5 {[%emt 0:00:21]} Qc5 {[%emt 0:00:21]} 20. Re3 {[%emt 0:01:14]} Nf5 {[%emt 0:01:01]} 21. Bxf5 {[%emt 0:00:09]} exf5 {[%emt 0:00:02]} 22. Nd4 {[%emt 0:00:20]} Qe7 {[%emt 0:00:15]} 23. g3 {[%emt 0:00:34][%cal Bg2g3,Bg3f4][%mdl 32]} h5 {[%emt 0:04:50]} (23... Rc5 $142) 24. Qe2 {[%emt 0:02:01]} g6 {[%emt 0:00:19][%cal Of5f4]} 25. e6 {[%emt 0:00:04]} f4 {[%emt 0:00:33]} 26. gxf4 {[%emt 0:04:10] White is more active.} ({Don't go for} 26. exd7 $2 fxe3 27. Qxe3 Qxe3 28. fxe3 Rxd7 $19) 26... fxe6 {[%emt 0:00:03]} 27. Rg3 {[%emt 0:01:18]} Qxh4 $2 {[%emt 0:11:04][%mdl 8192] [#]} (27... Qg7 $16) 28. Qe5 $18 {[%emt 0:00:43]} Rc4 {[%emt 0:00:45] Weighted Error Value: White=0.04 (flawless) /Black=0.15 (very precise)} 1-0

[Event "Superbet Rapid Poland 2022"]
[Site "Warsaw"]
[Date "2022.05.19"]
[Round "3.2"]
[White "Shevchenko, Kirill"]
[Black "So, Wesley"]
[Result "0-1"]
[ECO "C67"]
[WhiteElo "2644"]
[BlackElo "2766"]
[Annotator "TA"]
[PlyCount "84"]
[EventDate "2022.05.19"]
[EventType "tourn"]
[EventCountry "POL"]
[SourceTitle "playchess.com"]
[Source "ChessBase"]
[SourceQuality "1"]
[TimeControl "1500+10"]

{[%evp 9,84,8,10,-12,24,-23,-8,-16,-13,-3,-4,-20,-10,-70,-70,-131,-125,-127,-114,-111,-103,-116,-110,-118,-109,-182,-179,-243,-230,-251,-244,-247,-245,-239,-197,-253,-252,-300,-298,-299,-299,-306,-306,-307,-310,-316,-309,-306,-316,-312,-305,-356,-343,-393,-373,-386,-383,-516,-493,-508,-520,-735,-510,-934,-925,-927,-919,-869,-899,-29981,-29982,-29982,-29983,-29988,-5029,-29988,-29989]} 1. e4 {[%emt 0:00:02]} e5 {[%emt 0:00:02]} 2. Nf3 {[%emt 0:00:02]} Nc6 {[%emt 0:00:03]} 3. Bb5 {[%emt 0:00:02]} Nf6 {[%emt 0:00:03]} 4. O-O {[%emt 0:00:10]} Nxe4 {[%emt 0:00:01]} 5. Re1 {[%emt 0:00:03]} Nd6 {[%emt 0:00:03]} 6. Bf1 {[%emt 0:00:23] C67: Ruy Lopez: Berlin Defence: 4 0-0 Nxe4.} Be7 {[%emt 0:00:14] Threatens to win with ...e4.} 7. Nc3 {[%emt 0:00:05] Prevents e4. outshines the older 7.Nxe5.} (7. Nxe5 {is more appropriate.} Nxe5 8. Rxe5) 7... f6 $11 {[%emt 0:01:00][%cal Bf7f6,Bf6f5][%mdl 32]} 8. d4 {[%emt 0:01:15][%cal Rd4e5] The position is equal.} Nf7 {[%emt 0:00:03]} 9. Nd5 {[%emt 0:01:20][%cal Ob2b4] [#]} O-O $5 $146 {[%emt 0:00:07][%mdl 8] New and interesting.} ({Predecessor:} 9... d6 10. Bc4 Qd7 11. b4 Bd8 12. b5 Na5 13. Bd3 O-O 14. c4 Re8 15. Qc2 f5 16. dxe5 dxe5 {1-0 (47) Mamedov,R (2673)-Antipov,M (2619) Riga 2021}) 10. c4 {[%emt 0:04:48]} d6 {[%emt 0:00:06]} 11. Bd3 {[%emt 0:01:20]} (11. b4 $11) 11... f5 $15 {[%emt 0:01:43]} 12. b4 {[%emt 0:05:37]} (12. Nxe7+ $15 Qxe7 13. d5) 12... e4 $17 {[%emt 0:02:23]} 13. b5 {[%emt 0:00:20]} Nb8 {[%emt 0:00:04]} 14. Nd2 {[%emt 0:02:13][%cal Od2e4] Nxe4! is the strong threat.} Bg5 {[%emt 0:07:38]} 15. Bc2 {[%emt 0:02:54]} Be6 {[%emt 0:00:45]} 16. f3 {[%emt 0:02:57]} c6 {[%emt 0:04:17]} 17. fxe4 {[%emt 0:01:12]} (17. Nc3 $17) 17... cxd5 $19 {[%emt 0:01:03]} 18. exd5 {[%emt 0:02:00]} (18. cxd5 $142 Bc8 19. e5) 18... Bc8 {[%emt 0:01:04]} 19. a4 {[%emt 0:00:51]} a6 {[%emt 0:00:12]} 20. Nf3 {[%emt 0:00:34]} Bxc1 {[%emt 0:00:03]} 21. Rxc1 {[%emt 0:00:06]} b6 {[%emt 0:00:41] Inhibits c5.} 22. Qd2 {[%emt 0:00:15]} (22. c5 $142) 22... g6 {[%emt 0:00:18]} 23. Re6 {[%emt 0:00:16]} axb5 {[%emt 0:00:26]} 24. axb5 {[%emt 0:00:01]} Nd7 {[%emt 0:00:11]} ({Don't blunder} 24... Bxe6 $2 25. dxe6 Nh8 26. Re1 $17) 25. Rce1 {[%emt 0:00:10]} Nf6 {[%emt 0:00:07]} 26. Qf4 {[%emt 0:00:22]} Ra7 {[%emt 0:00:53]} ({But not} 26... Bxe6 $2 27. dxe6 Re8 28. exf7+ Kxf7 29. Rf1 $19) 27. R6e2 {[%emt 0:00:09]} Re8 {[%emt 0:00:57]} 28. Rxe8+ {[%emt 0:00:06]} Nxe8 {[%emt 0:00:01]} 29. h3 {[%emt 0:00:14]} Nf6 {[%emt 0:00:09]} 30. Kh2 {[%emt 0:00:09]} Kg7 {[%emt 0:00:06]} 31. Bb3 {[%emt 0:00:10]} h6 {[%emt 0:01:08][%cal Bh7h6,Bh6g5,Bg5g4][%mdl 32]} 32. Qe3 {[%emt 0:00:06]} Ng5 {[%emt 0:00:46]} 33. Nxg5 {[%emt 0:00:15]} hxg5 {[%emt 0:00:01]} 34. Kg1 {[%emt 0:00:10]} g4 {[%emt 0:00:20]} 35. h4 {[%emt 0:00:07]} Kf7 {[%emt 0:00:12]} 36. Qg5 {[%emt 0:00:11]} (36. Bc2 $142 Nh5 37. c5) 36... Re7 {[%emt 0:00:10]} 37. Rf1 {[%emt 0:00:09]} Qh8 {[%emt 0:00:25] And now ...Nh5 would win.} 38. c5 {[%emt 0:00:13]} Ne4 {[%emt 0:00:11]} 39. Qe3 {[%emt 0:00:09]} Qxh4 {[%emt 0:00:20]} 40. cxd6 {[%emt 0:00:06] [#]} g3 $1 {[%emt 0:00:37][%csl Gg3][%cal Rh4h2]} 41. Re1 {[%emt 0:00:16]} (41. Rxf5+ Bxf5) 41... Qh2+ {[%emt 0:00:06]} 42. Kf1 {[%emt 0:00:01] [#]} Nd2+ $1 {[%emt 0:00:03][%mdl 512] White did not feel at home in the position after the opening.  Weighted Error Value: White=0.63/Black=0.09 (flawless)} 0-1